bitfinex/quotes_BTCUSD_20240715
["timestamp","ask_amount","ask_price","bid_price","bid_amount"]
[1721072510862,2.39277157,63820.0,63819.0,0.004]
[1721072511321,2.39477157,63820.0,63819.0,0.004]
[1721072511579,2.39477157,63820.0,63819.0,0.001]
[1721072511796,2.54925939,63820.0,63819.0,0.001]
[1721072512344,2.37519416,63820.0,63819.0,0.001]
[1721072512547,1.111987,63811.0,63810.0,0.13608418]
[1721072512792,2.06640167,63811.0,63810.0,0.13608418]
[1721072512946,1.38455915,63811.0,63810.0,0.13608418]
[1721072513124,1.14141842,63811.0,63810.0,0.13608418]
[1721072513833,1.14341842,63811.0,63810.0,0.13608418]
[1721072514034,0.96914295,63811.0,63810.0,0.13608418]
[1721072514239,1.28256795,63811.0,63810.0,0.13608418]
[1721072514410,1.43335259,63811.0,63810.0,0.13608418]
[1721072514617,1.45676915,63811.0,63810.0,0.33408418]
[1721072514824,0.19349788,63811.0,63810.0,0.52758418]
[1721072515019,0.19349788,63811.0,63810.0,0.46308418]
[1721072515020,0.24629295,63811.0,63810.0,0.46308418]
[1721072515615,0.08559593,63811.0,63810.0,0.46308418]
[1721072515821,0.01344306,63811.0,63810.0,0.46308418]
[1721072516018,0.01344306,63811.0,63810.0,0.47308418]
[1721072516019,0.08487125,63811.0,63810.0,0.47308418]
[1721072516246,0.08487125,63811.0,63810.0,0.46708418]
[1721072516445,0.08487125,63811.0,63810.0,0.46308418]
[1721072516656,0.08487125,63811.0,63810.0,0.46408418]
[1721072517490,0.08487125,63811.0,63810.0,0.46808418]
[1721072517865,0.08387125,63811.0,63810.0,0.46708418]
[1721072518380,0.08487125,63811.0,63810.0,0.47208418]
[1721072518582,0.01444306,63811.0,63810.0,0.47208418]
[1721072518814,0.08486583,63811.0,63810.0,0.47299718]
[1721072519018,1.16192589,63811.0,63810.0,0.47299718]
[1721072519427,0.28850089,63811.0,63810.0,0.46899718]
[1721072519838,0.31196242,63811.0,63810.0,0.44199718]
[1721072519975,0.62438742,63811.0,63810.0,0.46399718]
[1721072520198,0.13079106,63811.0,63810.0,0.46399718]
[1721072520399,0.08386583,63811.0,63810.0,0.46399718]
[1721072520651,0.86742783,63811.0,63810.0,0.46499718]
[1721072520853,0.86742783,63811.0,63810.0,0.33599718]
[1721072521054,1.75043006,63811.0,63810.0,0.13799718]
[1721072521263,1.75043006,63811.0,63810.0,0.43799718]
[1721072521264,1.57746653,63811.0,63810.0,0.43799718]
[1721072521514,1.7048607,63811.0,63810.0,0.13799718]
[1721072521718,1.7048607,63811.0,63810.0,0.43899718]
[1721072521719,1.3914357,63811.0,63810.0,0.43899718]
[1721072521944,1.19365376,63811.0,63810.0,0.43799718]
[1721072522145,1.2405795,63811.0,63810.0,0.43799718]
[1721072522381,1.19365376,63811.0,63810.0,0.43699718]
[1721072522585,1.24058067,63811.0,63810.0,0.43699718]
[1721072522801,1.19365376,63811.0,63810.0,0.43699718]
[1721072523013,1.24258067,63811.0,63810.0,0.43699718]
[1721072523226,1.19865376,63811.0,63810.0,0.43699718]
[1721072523441,1.19865376,63811.0,63810.0,0.46399718]
[1721072523442,0.29015696,63811.0,63810.0,0.46399718]
[1721072523660,1.39756058,63811.0,63810.0,0.13699718]
[1721072523887,2.02716775,63811.0,63810.0,0.13699718]
[1721072524094,2.02389404,63811.0,63810.0,0.13699718]
[1721072524518,2.021864,63811.0,63810.0,0.13699718]
[1721072524721,2.021864,63811.0,63810.0,0.000913]
[1721072524722,2.036864,63811.0,63810.0,0.000913]
[1721072524934,3.091489,63811.0,63810.0,0.000913]
[1721072525143,3.82847927,63811.0,63810.0,0.000913]
[1721072525338,3.670114,63811.0,63810.0,0.001913]
[1721072525493,3.670114,63811.0,63799.0,0.32712748]
[1721072525494,1.177876,63800.0,63799.0,0.32712748]
[1721072525696,0.470241,63797.0,63796.0,0.13699718]
[1721072526071,1.79866294,63797.0,63796.0,0.13699718]
[1721072526223,1.89247741,63797.0,63796.0,0.33499718]
[1721072526484,1.57898341,63797.0,63796.0,0.13699718]
[1721072527085,1.313735,63797.0,63796.0,0.14499718]
[1721072527288,1.313735,63797.0,63796.0,0.34299718]
[1721072527289,1.45299907,63797.0,63796.0,0.34299718]
[1721072527453,0.06892307,63797.0,63796.0,0.53749718]
[1721072527658,0.01381911,63800.0,63799.0,0.327]
[1721072527857,0.01381911,63800.0,63799.0,0.387]
[1721072527858,0.0827287,63800.0,63799.0,0.387]
[1721072528115,0.06890959,63800.0,63799.0,0.327]
[1721072528281,0.06890959,63800.0,63796.0,0.28649718]
[1721072528282,0.313442,63808.0,63806.0,0.027]
[1721072528481,0.313426,63811.0,63797.0,0.08105238]
[1721072528482,0.002,63811.0,63810.0,0.027]
[1721072528734,0.5488141,63811.0,63810.0,0.327]
[1721072529056,0.5488141,63811.0,63810.0,0.224]
[1721072529057,1.0189511,63811.0,63810.0,0.224]
[1721072529440,0.71619269,63811.0,63810.0,0.224]
[1721072529639,0.71619269,63811.0,63810.0,0.326]
[1721072529640,0.08648069,63811.0,63810.0,0.326]
[1721072529839,0.08848069,63811.0,63810.0,0.327]
[1721072530154,0.24469542,63811.0,63810.0,0.327]
[1721072530353,0.24469542,63811.0,63810.0,0.224]
[1721072530354,0.80269542,63811.0,63810.0,0.224]
[1721072530495,0.80269542,63811.0,63808.0,0.198]
[1721072530496,0.156717,63809.0,63808.0,0.198]
[1721072530687,0.77503383,63809.0,63808.0,0.326]
[1721072530889,0.79503383,63809.0,63808.0,0.326]
[1721072531093,0.07898342,63809.0,63808.0,0.326]
[1721072531295,0.07898342,63809.0,63808.0,0.224]
[1721072531296,0.87570042,63809.0,63808.0,0.224]
[1721072531510,1.50257042,63809.0,63808.0,0.224]
[1721072531719,1.50257042,63809.0,63808.0,0.225]
[1721072532132,1.98881889,63809.0,63808.0,0.001]
[1721072532333,2.03567958,63809.0,63808.0,0.001]
[1721072532554,1.9184869,63809.0,63808.0,0.001]
[1721072532780,2.01226182,63809.0,63808.0,0.001]
[1721072532983,2.01226182,63809.0,63808.0,0.3]
[1721072532984,1.38642649,63809.0,63808.0,0.3]
[1721072533185,1.12185326,63809.0,63808.0,0.3]
[1721072533386,1.19045558,63809.0,63808.0,0.301]
[1721072533627,1.19045558,63809.0,63808.0,0.001]
[1721072533628,1.51634064,63809.0,63808.0,0.001]
[1721072533827,1.68747495,63809.0,63808.0,0.001]
[1721072534225,1.75780084,63809.0,63808.0,0.001]
[1721072534433,1.02643449,63809.0,63808.0,0.001]
[1721072534600,1.02643449,63809.0,63807.0,0.13608418]
[1721072534601,0.47016,63808.0,63807.0,0.13608418]
[1721072534808,1.44492855,63808.0,63807.0,0.33408418]
[1721072534993,1.35374633,63808.0,63807.0,0.33408418]
[1721072535452,0.23686633,63808.0,63807.0,0.46208418]
[1721072535812,0.55030633,63808.0,63807.0,0.33408418]
[1721072536017,0.65694627,63808.0,63807.0,0.36008418]
[1721072536221,1.5472671,63808.0,63807.0,0.13608418]
[1721072536422,0.470175,63806.0,63805.0,0.16208418]
[1721072536597,1.30323741,63806.0,63805.0,0.16208418]
[1721072537238,1.40672851,63806.0,63805.0,0.16208418]
[1721072537528,1.40672851,63806.0,63805.0,0.13608418]
[1721072537529,1.78999915,63806.0,63805.0,0.13608418]
[1721072537895,1.16311343,63806.0,63805.0,0.46208418]
[1721072538092,0.84966294,63806.0,63805.0,0.46208418]
[1721072538421,0.82621463,63806.0,63805.0,0.46208418]
[1721072538650,0.67633741,63806.0,63805.0,0.46208418]
[1721072538848,0.0801219,63806.0,63805.0,0.46208418]
[1721072539105,0.0801219,63806.0,63805.0,0.46408418]
[1721072539323,0.2368469,63806.0,63805.0,0.46408418]
[1721072539535,1.69684407,63806.0,63805.0,0.33608418]
[1721072539748,1.7999991,63806.0,63805.0,0.14008418]
[1721072539959,1.24344399,63806.0,63805.0,0.14008418]
[1721072540169,1.4865491,63806.0,63805.0,0.14008418]
[1721072540351,1.55689399,63806.0,63805.0,0.13808418]
[1721072540768,1.4865491,63806.0,63805.0,0.13808418]
[1721072541311,1.55689664,63806.0,63805.0,0.33408418]
[1721072541665,1.55689664,63806.0,63805.0,0.46208418]
[1721072541666,0.72444664,63806.0,63805.0,0.46208418]
[1721072541888,0.41099664,63806.0,63805.0,0.46208418]
[1721072542178,0.08076907,63806.0,63805.0,0.66228418]
[1721072542501,0.07025958,63806.0,63805.0,0.66228418]
[1721072542899,0.06925958,63806.0,63805.0,0.66228418]
[1721072543111,0.1567,63816.0,63815.0,0.46208418]
[1721072543317,1.03172846,63816.0,63815.0,0.46108418]
[1721072543722,0.08162746,63816.0,63815.0,0.59808418]
[1721072543928,0.01176605,63816.0,63815.0,1.33139118]
[1721072544161,0.00108713,63816.0,63815.0,1.43139118]
[1721072544375,0.00785,63820.0,63819.0,0.5341]
[1721072545015,0.00785,63820.0,63819.0,0.4741]
[1721072545220,0.01977469,63820.0,63819.0,0.4741]
[1721072545445,0.00785,63820.0,63819.0,0.4741]
[1721072545648,0.01977469,63820.0,63819.0,0.4741]
[1721072545804,0.09030182,63820.0,63819.0,0.4771]
[1721072546021,0.00885,63820.0,63819.0,0.328]
[1721072546223,0.00885,63820.0,63819.0,0.339]
[1721072546426,0.09130077,63820.0,63819.0,0.339]
[1721072546626,0.09130077,63820.0,63819.0,0.325]
[1721072546830,0.07937608,63820.0,63819.0,0.325]
[1721072547042,0.07937608,63820.0,63819.0,0.338]
[1721072547043,0.09130077,63820.0,63819.0,0.338]
[1721072547221,0.02077469,63820.0,63819.0,0.398]
[1721072547420,0.00885,63820.0,63819.0,0.398]
[1721072547619,0.00885,63820.0,63819.0,0.412]
[1721072547620,0.00985,63820.0,63819.0,0.412]
[1721072547819,0.00985,63820.0,63819.0,1.082079]
[1721072548020,0.00985,63820.0,63819.0,0.568693]
[1721072548255,0.00985,63820.0,63819.0,0.882079]
[1721072548452,0.00985,63820.0,63819.0,1.017179]
[1721072548453,0.00785,63820.0,63819.0,1.017179]
[1721072548655,0.00785,63820.0,63819.0,0.658179]
[1721072548827,0.00885,63820.0,63819.0,1.15426318]
[1721072549589,0.00985,63820.0,63819.0,1.15426318]
[1721072549822,0.00985,63820.0,63819.0,0.68418418]
[1721072550028,0.00985,63820.0,63819.0,0.69818418]
[1721072551236,0.00985,63820.0,63819.0,0.63818418]
[1721072551364,0.02177909,63820.0,63819.0,0.48908418]
[1721072551573,0.00985,63820.0,63819.0,0.54908418]
[1721072552199,0.00985,63820.0,63819.0,0.48908418]
[1721072552603,0.00985,63820.0,63819.0,0.65388418]
[1721072553004,0.00985,63820.0,63819.0,0.69988418]
[1721072553445,0.00985,63820.0,63819.0,0.71388418]
[1721072553815,0.00985,63820.0,63819.0,0.69988418]
[1721072554334,0.00985,63820.0,63819.0,0.85657718]
[1721072554729,0.00785,63820.0,63819.0,0.68588418]
[1721072554926,0.00785,63820.0,63819.0,0.1908]
[1721072555291,0.00885,63820.0,63819.0,0.71388418]
[1721072555441,0.00885,63820.0,63819.0,0.63988418]
[1721072555651,0.00885,63820.0,63819.0,0.68588418]
[1721072555990,0.00885,63820.0,63819.0,0.71388418]
[1721072555991,0.00985,63820.0,63819.0,0.71388418]
[1721072556193,0.00885,63820.0,63819.0,0.69988418]
[1721072556472,0.00985,63820.0,63819.0,0.69988418]
[1721072556791,0.00885,63820.0,63819.0,0.69988418]
[1721072557965,0.00985,63820.0,63819.0,0.87057718]
[1721072558209,0.00785,63820.0,63819.0,0.84257718]
[1721072558410,0.00785,63820.0,63819.0,1.38396318]
[1721072558608,0.00785,63820.0,63819.0,0.87057718]
[1721072558609,0.00885,63820.0,63819.0,0.87057718]
[1721072559034,0.00885,63820.0,63819.0,0.85657718]
[1721072559461,0.00885,63820.0,63819.0,1.07057718]
[1721072559645,0.00885,63820.0,63819.0,0.87057718]
[1721072559845,0.00885,63820.0,63819.0,0.85657718]
[1721072560245,0.00885,63820.0,63819.0,1.36996318]
[1721072560447,0.00885,63820.0,63819.0,2.56333518]
[1721072560709,0.00885,63820.0,63819.0,2.66333518]
[1721072560881,0.00885,63820.0,63819.0,2.97672118]
[1721072561420,0.00885,63820.0,63819.0,2.66333518]
[1721072561554,0.00785,63820.0,63819.0,2.24994918]
[1721072561759,0.00885,63820.0,63819.0,2.36394918]
[1721072561959,0.00785,63820.0,63819.0,2.33594918]
[1721072562357,0.00885,63820.0,63819.0,1.42406318]
[1721072562581,0.00885,63820.0,63819.0,1.51006318]
[1721072562781,0.00885,63820.0,63819.0,1.31006318]
[1721072562985,0.00985,63820.0,63819.0,1.31006318]
[1721072563187,0.00885,63820.0,63819.0,0.83998418]
[1721072563384,0.00885,63820.0,63819.0,0.99667718]
[1721072563582,0.00985,63820.0,63819.0,1.02467718]
[1721072564867,0.00985,63820.0,63819.0,0.66788418]
[1721072565020,0.07645,63820.0,63819.0,0.36888418]
[1721072565222,0.55535257,63820.0,63819.0,0.64188418]
[1721072565443,0.55535257,63820.0,63819.0,0.65388418]
[1721072565685,0.24197157,63820.0,63819.0,0.65388418]
[1721072565891,0.01668157,63820.0,63819.0,0.63988418]
[1721072566095,0.01668157,63820.0,63819.0,0.71188418]
[1721072566210,0.01668157,63820.0,63819.0,0.69788418]
[1721072566415,0.01668157,63820.0,63819.0,0.71188418]
[1721072566620,0.01668157,63820.0,63819.0,0.72388418]
[1721072566828,0.01668157,63820.0,63819.0,0.66388418]
[1721072567260,0.01668157,63820.0,63819.0,0.64988418]
[1721072567478,0.01668157,63820.0,63819.0,0.70988418]
[1721072567686,0.00785,63820.0,63819.0,0.70988418]
[1721072567914,0.00785,63820.0,63819.0,0.62588418]
[1721072568159,0.00785,63820.0,63819.0,0.63888418]
[1721072568390,0.00785,63820.0,63819.0,0.68588418]
[1721072568612,0.00785,63820.0,63819.0,0.69988418]
[1721072568819,0.00785,63820.0,63819.0,0.71388418]
[1721072569016,0.00785,63820.0,63819.0,1.74866318]
[1721072569237,0.00785,63820.0,63819.0,1.52066318]
[1721072569437,0.00785,63820.0,63819.0,1.29416318]
[1721072569639,0.00785,63820.0,63819.0,1.30816318]
[1721072570006,0.00785,63820.0,63819.0,0.63988418]
[1721072570354,0.00785,63820.0,63819.0,0.65388418]
[1721072570555,0.00785,63820.0,63819.0,0.71388418]
[1721072570922,0.00785,63820.0,63819.0,0.2188]
[1721072571123,0.00785,63820.0,63819.0,0.71388418]
[1721072571343,0.00785,63820.0,63819.0,0.69988418]
[1721072571544,0.00785,63820.0,63819.0,1.69734918]
[1721072571822,0.00785,63820.0,63819.0,1.46934918]
[1721072572031,0.00785,63820.0,63819.0,1.15596318]
[1721072572251,0.00785,63820.0,63819.0,0.85657718]
[1721072572443,0.00785,63820.0,63819.0,0.84257718]
[1721072572696,0.00785,63820.0,63819.0,1.16996318]
[1721072572943,0.00785,63820.0,63819.0,0.69988418]
[1721072573886,0.00785,63820.0,63819.0,0.68588418]
[1721072574437,0.00785,63820.0,63819.0,0.69988418]
[1721072574693,0.00785,63820.0,63819.0,0.68588418]
[1721072575035,0.00785,63820.0,63819.0,0.69988418]
[1721072575203,0.00785,63820.0,63819.0,0.68588418]
[1721072575652,0.00785,63820.0,63819.0,0.71388418]
[1721072575978,0.00785,63820.0,63819.0,0.69988418]
[1721072576175,0.00785,63820.0,63819.0,0.71388418]
[1721072576373,0.00785,63820.0,63819.0,0.69988418]
[1721072576803,0.00785,63820.0,63819.0,0.71388418]
[1721072577195,0.00785,63820.0,63819.0,0.69988418]
[1721072577552,0.00785,63820.0,63819.0,0.68588418]
[1721072577762,0.00785,63820.0,63819.0,0.49888418]
[1721072577968,0.16454,63820.0,63819.0,0.53888418]
[1721072578149,1.10897338,63820.0,63819.0,0.49888418]
[1721072578360,0.56779296,63820.0,63819.0,0.52488418]
[1721072578598,0.56779296,63820.0,63819.0,0.51288418]
[1721072578776,0.56779296,63820.0,63819.0,0.1788]
[1721072579151,0.56779296,63820.0,63819.0,0.32888418]
[1721072579152,1.86455496,63820.0,63819.0,0.32888418]
[1721072579322,2.04725496,63820.0,63819.0,0.31488418]
[1721072580023,2.04725496,63820.0,63819.0,0.30088418]
[1721072580232,2.03125496,63820.0,63819.0,0.13608418]
[1721072580431,2.03325496,63820.0,63819.0,0.13708418]
[1721072580848,2.03325496,63820.0,63819.0,0.15008418]
[1721072580849,2.19624922,63820.0,63819.0,0.15008418]
[1721072581081,3.02894813,63820.0,63819.0,0.014]
[1721072581291,0.861125,63806.0,63805.0,0.000913]
[1721072581493,1.96061249,63806.0,63805.0,0.000913]
[1721072581700,1.37161643,63806.0,63805.0,0.000913]
[1721072581902,1.43637908,63806.0,63805.0,0.000913]
[1721072582604,1.43637908,63806.0,63805.0,0.008913]
[1721072583517,1.45237908,63806.0,63805.0,0.008913]
[1721072583713,1.45237908,63806.0,63805.0,0.018913]
[1721072583885,2.40582908,63806.0,63805.0,0.018913]
[1721072584090,2.5050956,63806.0,63805.0,0.010913]
[1721072584291,2.22602933,63806.0,63805.0,0.000913]
[1721072584455,2.32510192,63806.0,63805.0,0.000913]
[1721072584657,3.01086983,63806.0,63805.0,0.000913]
[1721072584867,3.11244795,63806.0,63805.0,0.000913]
[1721072585068,2.94833004,63806.0,63805.0,0.000913]
[1721072585265,2.96033004,63806.0,63805.0,0.000913]
[1721072585466,2.95033004,63806.0,63805.0,0.000913]
[1721072585670,2.95133004,63806.0,63805.0,0.011913]
[1721072585879,3.11095702,63806.0,63805.0,0.011913]
[1721072586083,3.11095702,63806.0,63801.0,0.32712748]
[1721072586084,2.081417,63797.0,63796.0,0.000913]
[1721072586343,2.081417,63797.0,63784.0,0.4863143]
[1721072586344,0.549029,63785.0,63784.0,0.4863143]
[1721072586542,1.3938979,63785.0,63784.0,0.4863143]
[1721072586715,0.783955,63779.0,63778.0,0.13608418]
[1721072587088,0.783955,63779.0,63768.0,0.5123143]
[1721072587089,0.313611,63774.0,63768.0,0.5123143]
[1721072587262,0.387282,63779.0,63764.0,0.18914048]
[1721072587263,0.313651,63765.0,63764.0,0.18914048]
[1721072587468,0.313651,63765.0,63758.0,0.7958]
[1721072587469,0.0627,63773.0,63758.0,0.026]
[1721072587470,0.15684,63759.0,63758.0,0.026]
[1721072587845,0.16481578,63759.0,63758.0,0.026]
[1721072588043,0.16481578,63759.0,63755.0,0.009163]
[1721072588044,0.156847,63756.0,63755.0,0.14524718]
[1721072588255,0.00797578,63759.0,63758.0,0.299]
[1721072588454,0.156828,63764.0,63763.0,0.43508418]
[1721072588852,0.0627,63772.0,63758.0,0.026]
[1721072588853,0.0627,63772.0,63770.0,0.13608418]
[1721072589053,0.314611,63774.0,63770.0,0.13608418]
[1721072589054,0.570433,63771.0,63770.0,0.13608418]
[1721072589870,0.570433,63771.0,63770.0,0.43508418]
[1721072589871,0.101,63771.0,63770.0,0.43508418]
[1721072590063,0.101,63771.0,63770.0,0.37808418]
[1721072590064,0.26583904,63771.0,63770.0,0.37808418]
[1721072590262,0.57946104,63771.0,63770.0,0.33408418]
[1721072590471,1.22970504,63771.0,63770.0,0.13608418]
[1721072590644,1.22970504,63771.0,63753.0,0.1399]
[1721072590645,0.156847,63757.0,63754.0,0.026]
[1721072590845,0.001,63759.0,63754.0,0.026]
[1721072591125,0.157841,63759.0,63758.0,0.33408418]
[1721072591347,0.471522,63759.0,63758.0,0.33408418]
[1721072591543,0.157841,63759.0,63758.0,0.33408418]
[1721072591746,0.156841,63759.0,63758.0,0.33408418]
[1721072591921,0.156834,63762.0,63761.0,0.198]
[1721072592154,0.0622,63770.0,63761.0,0.198]
[1721072592155,0.101,63771.0,63769.0,0.198]
[1721072592342,0.101,63771.0,63767.0,0.223]
[1721072592343,0.001,63771.0,63767.0,0.223]
[1721072592478,0.001,63771.0,63770.0,0.323]
[1721072592681,0.157811,63771.0,63770.0,0.026]
[1721072592880,0.1,63771.0,63770.0,0.222]
[1721072593077,0.1,63771.0,63770.0,0.025]
[1721072593286,0.1,63771.0,63770.0,0.35708418]
[1721072593649,0.1,63771.0,63770.0,0.16108418]
[1721072593969,0.1,63771.0,63770.0,1.05102418]
[1721072593970,0.001,63771.0,63770.0,1.05102418]
[1721072594171,0.001,63771.0,63770.0,1.12742418]
[1721072594377,0.001,63771.0,63770.0,1.44105118]
[1721072594620,0.001,63771.0,63770.0,1.64105118]
[1721072594820,0.156747,63797.0,63796.0,0.13508418]
[1721072595022,1.040241,63797.0,63796.0,0.13508418]
[1721072595215,0.313525,63791.0,63789.0,0.13508418]
[1721072595426,0.313525,63791.0,63788.0,0.13508418]
[1721072595427,0.470299,63789.0,63788.0,0.13508418]
[1721072595549,0.470299,63789.0,63788.0,0.13408418]
[1721072595550,0.783832,63789.0,63788.0,0.13408418]
[1721072597201,1.795465,63789.0,63788.0,0.13408418]
[1721072597426,1.795465,63789.0,63781.0,0.13408418]
[1721072597427,0.78392,63782.0,63781.0,0.13408418]
[1721072597809,0.78392,63782.0,63781.0,0.33008418]
[1721072597810,0.470352,63782.0,63781.0,0.33008418]
[1721072598074,0.156784,63782.0,63781.0,0.33008418]
[1721072598283,0.156784,63782.0,63781.0,0.43108418]
[1721072598486,0.2721,63789.0,63788.0,0.13408418]
[1721072598487,0.404866,63789.0,63788.0,0.13408418]
[1721072598700,0.637799,63789.0,63788.0,0.13308418]
[1721072598899,0.951332,63789.0,63788.0,0.13308418]
[1721072599128,1.540332,63789.0,63788.0,0.13308418]
[1721072599299,0.156784,63782.0,63781.0,0.13208418]
[1721072599443,1.210352,63782.0,63781.0,0.13208418]
[1721072599663,0.571352,63782.0,63781.0,0.13208418]
[1721072599855,0.88492,63782.0,63781.0,0.13208418]
[1721072600081,1.213488,63782.0,63781.0,0.13208418]
[1721072600298,0.88392,63782.0,63781.0,0.13208418]
[1721072600523,1.853488,63782.0,63781.0,0.13208418]
[1721072600750,2.013988,63782.0,63781.0,0.13208418]
[1721072600983,2.013988,63782.0,63768.0,0.023]
[1721072600984,2.013988,63782.0,63774.0,0.13208418]
[1721072600985,1.113607,63775.0,63774.0,0.13208418]
[1721072601255,1.876607,63775.0,63774.0,0.13208418]
[1721072601515,2.190209,63775.0,63774.0,0.13208418]
[1721072601743,2.190209,63775.0,63755.0,0.009163]
[1721072601744,0.156847,63756.0,63755.0,0.009163]
[1721072601984,0.470542,63756.0,63755.0,0.306163]
[1721072602465,0.470542,63756.0,63755.0,0.205163]
[1721072602698,0.470542,63756.0,63755.0,0.306163]
[1721072603616,0.471542,63756.0,63755.0,0.306163]
[1721072604310,0.471542,63756.0,63755.0,0.205163]
[1721072604534,0.157847,63756.0,63755.0,0.009163]
[1721072604810,0.157847,63756.0,63755.0,0.306163]
[1721072605036,0.158847,63756.0,63755.0,0.310163]
[1721072605263,0.157847,63756.0,63755.0,0.306163]
[1721072605488,0.1,63764.0,63763.0,0.297]
[1721072605712,0.15682,63767.0,63766.0,0.195]
[1721072605949,0.15682,63767.0,63761.0,0.023]
[1721072605950,0.47047,63766.0,63765.0,0.195]
[1721072606182,0.57047,63766.0,63765.0,0.195]
[1721072606421,0.57047,63766.0,63755.0,0.013163]
[1721072606422,0.470521,63759.0,63758.0,0.195]
[1721072606668,0.470521,63759.0,63758.0,0.194]
[1721072607130,0.470521,63759.0,63758.0,0.294]
[1721072607357,0.15684,63759.0,63758.0,0.294]
[1721072607583,0.313666,63762.0,63761.0,0.194]
[1721072607801,0.101,63766.0,63764.0,0.294]
[1721072608070,0.101,63766.0,63765.0,0.45715238]
[1721072608071,0.001,63766.0,63765.0,0.45715238]
[1721072608312,0.001,63766.0,63765.0,0.3761]
[1721072608544,0.001,63766.0,63765.0,0.4361]
[1721072608767,0.313574,63781.0,63776.0,0.044]
[1721072609014,0.313574,63781.0,63771.0,0.023]
[1721072609015,0.313617,63772.0,63771.0,0.023]
[1721072609243,0.470425,63772.0,63771.0,0.194]
[1721072609687,0.470425,63772.0,63767.0,0.18914048]
[1721072609688,0.313617,63772.0,63767.0,0.18914048]
[1721072610185,0.313617,63772.0,63764.0,0.002]
[1721072610186,0.784127,63765.0,63764.0,0.002]
[1721072610466,1.113932,63756.0,63747.0,0.00306353]
[1721072610710,1.1503186,63756.0,63747.0,0.00306353]
[1721072610941,1.1503186,63756.0,63746.0,0.804963]
[1721072610942,1.90140275,63756.0,63746.0,0.804963]
[1721072611180,1.8433186,63756.0,63746.0,0.804963]
[1721072611423,1.90016783,63756.0,63746.0,0.804963]
[1721072611677,2.00066018,63756.0,63746.0,0.804963]
[1721072611917,1.88416783,63756.0,63746.0,0.804963]
[1721072612204,1.88416783,63756.0,63755.0,0.010163]
[1721072612205,0.3172336,63756.0,63755.0,0.010163]
[1721072612464,0.264847,63756.0,63755.0,0.009163]
[1721072612692,0.264847,63756.0,63755.0,0.010163]
[1721072612693,0.897237,63756.0,63755.0,0.010163]
[1721072612927,0.94115942,63756.0,63755.0,0.010163]
[1721072613169,0.583542,63756.0,63755.0,0.010163]
[1721072613419,0.583542,63756.0,63755.0,0.303163]
[1721072613666,0.578542,63756.0,63755.0,0.302163]
[1721072613899,0.579542,63756.0,63755.0,0.010163]
[1721072614136,0.256847,63756.0,63755.0,0.303163]
[1721072614368,0.256847,63756.0,63755.0,0.304163]
[1721072614647,0.256847,63756.0,63755.0,0.011163]
[1721072614921,0.256847,63756.0,63755.0,0.304163]
[1721072615425,0.313641,63767.0,63765.0,0.194]
[1721072615664,0.733641,63767.0,63762.0,0.216]
[1721072615930,0.0819,63773.0,63760.0,0.099]
[1721072615931,0.062869,63774.0,63773.0,0.293]
[1721072616163,0.062869,63774.0,63760.0,0.313673]
[1721072616164,0.49113443,63774.0,63768.0,0.194]
[1721072616399,0.156816,63769.0,63768.0,0.194]
[1721072616642,0.313619,63772.0,63766.0,0.0995]
[1721072616874,0.156823,63766.0,63765.0,0.215]
[1721072617109,0.156823,63766.0,63765.0,0.022]
[1721072617354,0.003,63767.0,63765.0,0.215]
[1721072617612,0.003,63767.0,63766.0,0.314]
[1721072618164,0.313585,63779.0,63766.0,0.314]
[1721072618165,0.156796,63777.0,63775.0,0.193]
[1721072618395,0.1755,63781.0,63773.0,0.099]
[1721072618396,0.313578,63780.0,63777.0,0.022]
[1721072618641,0.1755,63781.0,63779.0,0.192]
[1721072618888,0.1,63791.0,63788.0,0.291]
[1721072618889,0.156762,63791.0,63788.0,0.291]
[1721072619134,0.078,63802.0,63788.0,0.291]
[1721072619135,0.313477,63801.0,63788.0,0.312]
[1721072619379,0.5,63806.0,63788.0,0.3872]
[1721072619380,0.313496,63797.0,63788.0,0.3872]
[1721072619645,0.313496,63797.0,63788.0,0.312]
[1721072619646,0.313515,63793.0,63788.0,0.312]
[1721072619874,0.313515,63793.0,63788.0,0.29]
[1721072620343,0.313515,63793.0,63786.0,0.214]
[1721072620344,0.313531,63790.0,63786.0,0.214]
[1721072620622,0.313531,63790.0,63773.0,0.156805]
[1721072620623,0.313452,63806.0,63788.0,0.87936668]
[1721072620864,0.377999,63817.0,63788.0,0.383]
[1721072620865,0.00183,63789.0,63788.0,0.383]
[1721072621137,0.00183,63789.0,63788.0,0.853307]
[1721072621403,0.00183,63789.0,63788.0,0.852307]
[1721072621671,0.00183,63789.0,63788.0,1.649445]
[1721072621911,0.00283,63789.0,63788.0,1.791145]
[1721072622154,0.00283,63789.0,63788.0,2.093683]
[1721072622155,0.00183,63789.0,63788.0,2.093683]
[1721072622408,0.0646,63817.0,63788.0,2.093683]
[1721072622409,0.00785,63820.0,63819.0,0.289]
[1721072622960,0.16454,63820.0,63819.0,0.289]
[1721072623399,0.00785,63820.0,63819.0,0.31]
[1721072623658,0.00785,63820.0,63819.0,0.309]
[1721072623930,0.00785,63820.0,63819.0,0.369]
[1721072624196,0.01385,63820.0,63819.0,0.31]
[1721072624942,0.01385,63820.0,63819.0,0.37]
[1721072625175,0.01385,63820.0,63819.0,0.31]
[1721072625411,0.01385,63820.0,63819.0,0.371]
[1721072625412,0.02185,63820.0,63819.0,0.371]
[1721072625649,0.02185,63820.0,63819.0,0.311]
[1721072626365,0.02185,63820.0,63819.0,0.841079]
[1721072626627,0.02185,63820.0,63819.0,1.040079]
[1721072626628,0.01385,63820.0,63819.0,1.040079]
[1721072626860,0.01385,63820.0,63819.0,1.178379]
[1721072626861,0.01585,63820.0,63819.0,1.178379]
[1721072627084,0.01585,63820.0,63819.0,0.978379]
[1721072627346,0.01985,63820.0,63819.0,0.979379]
[1721072627623,0.01585,63820.0,63819.0,1.491765]
[1721072627859,0.01585,63820.0,63819.0,1.505765]
[1721072628353,0.00785,63820.0,63819.0,1.504765]